fUSD/lending_fUSD_20240214
["ID","MTS","AMOUNT","RATE_DAILY","PERIOD"]
[313996354,1707918721694,-330.805379,0.00038356,7]
[313996355,1707918721704,-330.805383,0.00038356,7]
[313996356,1707918721714,-151.0,0.00038356,7]
[313996357,1707918721724,-151.0,0.00038356,7]
[313996358,1707918721734,-151.0,0.00038356,7]
[313996359,1707918721743,-151.0,0.00038356,7]
[313996360,1707918721753,-151.0,0.00038356,7]
[313996361,1707918721762,-151.0,0.00038356,7]
[313996362,1707918721772,-151.0,0.00038356,7]
[313996363,1707918721782,-151.0,0.00038356,7]
[313996364,1707918721792,-151.0,0.00038356,7]
[313996365,1707918721801,-151.0,0.00038356,7]
[313996366,1707918721811,-278.192333,0.00038356,7]
[313996367,1707918721821,-175.777901,0.00038356,7]
[313996368,1707918721830,-151.0,0.00038356,7]
[313996369,1707918721839,-151.0,0.00038356,7]
[313996370,1707918721848,-151.0,0.00038356,7]
[313996371,1707918721858,-151.0,0.00038356,7]
[313996372,1707918721868,-151.0,0.00038356,7]
[313996373,1707918721877,-151.0,0.00038356,7]
[313996374,1707918721887,-151.0,0.00038356,7]
[313996375,1707918721896,-151.0,0.00038356,7]
[313996376,1707918721906,-151.0,0.00038356,7]
[313996377,1707918721915,-294.011701,0.00038356,7]
[313996378,1707918721925,-164.069791,0.00038356,7]
[313996379,1707918721934,-151.0,0.00038356,7]
[313996380,1707918721945,-151.0,0.00038356,7]
[313996381,1707918721955,-183.95088,0.00038356,7]
[313996382,1707918721965,-151.0,0.00038356,7]
[313996383,1707918721974,-151.0,0.00038356,7]
[313996384,1707918721985,-151.0,0.00038356,7]
[313996385,1707918721994,-151.0,0.00038356,7]
[313996386,1707918722005,-151.0,0.00038356,7]
[313996387,1707918722092,-151.0,0.00038356,7]
[313996388,1707918722102,-151.0,0.00038356,7]
[313996389,1707918722113,-151.0,0.00038356,7]
[313996390,1707918722122,-151.0,0.00038356,7]
[313996391,1707918722131,-151.0,0.00038356,7]
[313996392,1707918722140,-151.0,0.00038356,7]
[313996393,1707918722149,-151.0,0.00038356,7]
[313996394,1707918722159,-151.0,0.00038356,7]
[313996395,1707918722168,-278.377002,0.00038356,7]
[313996396,1707918722177,-267.90508,0.00038356,7]
[313996397,1707918722187,-151.0,0.00038356,7]
[313996398,1707918722197,-151.0,0.00038356,7]
[313996399,1707918722206,-151.0,0.00038356,7]
[313996400,1707918722216,-151.0,0.00038356,7]
[313996401,1707918722224,-151.0,0.00038356,7]
[313996402,1707918722233,-151.0,0.00038356,7]
[313996403,1707918722243,-151.0,0.00038356,7]
[313996404,1707918722252,-151.0,0.00038356,7]
[313996405,1707918722261,-151.0,0.00038356,7]
[313996406,1707918722271,-151.0,0.00038356,7]
[313996407,1707918722280,-151.0,0.00038356,7]
[313996408,1707918722290,-151.0,0.00038356,7]
[313996409,1707918722298,-151.0,0.00038356,7]
[313996410,1707918722308,-151.0,0.00038356,7]
[313996411,1707918722318,-151.0,0.00038356,7]
[313996412,1707918722328,-151.0,0.00038356,7]
[313996413,1707918722338,-151.0,0.00038356,7]
[313996414,1707918722347,-273.827766,0.00038356,7]
[313996415,1707918722356,-155.23,0.00038356,2]
[313996416,1707918722366,-151.0,0.00038356,7]
[313996417,1707918722375,-151.0,0.00038356,7]
[313996418,1707918722384,-151.0,0.00038356,7]
[313996419,1707918722394,-151.0,0.00038356,7]
[313996420,1707918722404,-151.0,0.00038356,7]
[313996421,1707918722413,-151.0,0.00038356,7]
[313996422,1707918722422,-151.0,0.00038356,7]
[313996423,1707918722431,-151.0,0.00038356,7]
[313996424,1707918722440,-151.0,0.00038356,7]
[313996425,1707918722449,-151.0,0.00038356,7]
[313996426,1707918722459,-151.0,0.00038356,7]
[313996427,1707918722468,-151.0,0.00038356,7]
[313996428,1707918722477,-151.0,0.00038356,7]
[313996429,1707918722487,-151.0,0.00038356,7]
[313996430,1707918722496,-167.902538,0.00038356,7]
[313996431,1707918722506,-151.0,0.00038356,7]
[313996432,1707918722515,-151.0,0.00038356,7]
[313996433,1707918722525,-151.0,0.00038356,7]
[313996434,1707918722534,-151.0,0.00038356,7]
[313996435,1707918722544,-193.752172,0.00038356,7]
[313996436,1707918722554,-231.342047,0.00038356,7]
[313996437,1707918722563,-151.0,0.00038356,7]
[313996438,1707918722572,-151.0,0.00038356,7]
[313996439,1707918722582,-151.00000078,0.00038356,7]
[313996440,1707918722591,-151.0,0.00038356,7]
[313996441,1707918722601,-227.951601,0.00038356,7]
[313996442,1707918722610,-601.233275,0.00038356,7]
[313996443,1707918722621,-601.233275,0.00038356,7]
[313996444,1707918722631,-601.233275,0.00038356,7]
[313996445,1707918722644,-601.233275,0.00038356,7]
[313996446,1707918722654,-601.233275,0.00038356,7]
[313996447,1707918722663,-601.233275,0.00038356,7]
[313996448,1707918722673,-601.233275,0.00038356,7]
[313996449,1707918722683,-601.233275,0.00038356,7]
[313996450,1707918722692,-601.233275,0.00038356,7]
[313996451,1707918722705,-601.233275,0.00038356,7]
[313996452,1707918722716,-601.233275,0.00038356,7]
[313996453,1707918722726,-601.233275,0.00038356,7]
[313996454,1707918722735,-601.233275,0.00038356,7]
[313996455,1707918722745,-601.233275,0.00038356,7]
[313996456,1707918722754,-601.233275,0.00038356,7]
[313996457,1707918722764,-601.233275,0.00038356,7]
[313996458,1707918722775,-601.233275,0.00038356,7]
[313996459,1707918722785,-601.233275,0.00038356,7]
[313996460,1707918722796,-601.233275,0.00038356,7]
[313996461,1707918722806,-601.233274,0.00038356,7]
[313996462,1707918722816,-172.700699,0.00038356,7]
[313996463,1707918722825,-172.700699,0.00038356,7]
[313996464,1707918722834,-172.700699,0.00038356,7]
[313996465,1707918722844,-172.700699,0.00038356,7]
[313996466,1707918722853,-172.700699,0.00038356,7]
[313996467,1707918722863,-172.700699,0.00038356,7]
[313996468,1707918722873,-172.700699,0.00038356,7]
[313996469,1707918722884,-172.700699,0.00038356,7]
[313996470,1707918722893,-172.700699,0.00038356,7]
[313996471,1707918722903,-172.700699,0.00038356,7]
[313996472,1707918722913,-172.700699,0.00038356,7]
[313996473,1707918722922,-172.700699,0.00038356,7]
[313996474,1707918722932,-158.864714,0.00038356,7]
[313996475,1707918722942,-172.700699,0.00038356,7]
[313996476,1707918722951,-158.864714,0.00038356,7]
[313996477,1707918722961,-172.700699,0.00038356,7]
[313996478,1707918722971,-158.864714,0.00038356,7]
[313996479,1707918722981,-172.700699,0.00038356,7]
[313996480,1707918722991,-158.864714,0.00038356,7]
[313996481,1707918723001,-172.700699,0.00038356,7]
[313996482,1707918723011,-158.864714,0.00038356,7]
[313996483,1707918723022,-172.700699,0.00038356,7]
[313996484,1707918723032,-158.864714,0.00038356,7]
[313996485,1707918723043,-172.700699,0.00038356,7]
[313996486,1707918723053,-158.864714,0.00038356,7]
[313996487,1707918723064,-172.700699,0.00038356,7]
[313996488,1707918723074,-158.864714,0.00038356,7]
[313996489,1707918723084,-172.700701,0.00038356,7]
[313996490,1707918723095,-158.864714,0.00038356,7]
[313996491,1707918723105,-158.864714,0.00038356,7]
[313996492,1707918723115,-158.864714,0.00038356,7]
[313996493,1707918723125,-158.864714,0.00038356,7]
[313996494,1707918723137,-158.864714,0.00038356,7]
[313996495,1707918723148,-158.864714,0.00038356,7]
[313996496,1707918723158,-158.864714,0.00038356,7]
[313996497,1707918723168,-158.864714,0.00038356,7]
[313996498,1707918723178,-158.864714,0.00038356,7]
[313996499,1707918723189,-158.864714,0.00038356,7]
[313996500,1707918723200,-158.864714,0.00038356,7]
[313996501,1707918723211,-158.864719,0.00038356,7]
[313996502,1707918723221,-151.0,0.00038356,7]
[313996503,1707918723231,-151.0,0.00038356,7]
[313996504,1707918723241,-151.0,0.00038356,7]
[313996505,1707918723251,-162.712087,0.00038356,7]
[313996506,1707918723262,-282.265306,0.00038356,7]
[313996507,1707918723272,-282.265306,0.00038356,7]
[313996508,1707918723282,-282.265306,0.00038356,7]
[313996509,1707918723293,-282.265306,0.00038356,7]
[313996510,1707918723303,-282.265306,0.00038356,7]
[313996511,1707918723312,-282.265306,0.00038356,7]
[313996512,1707918723323,-1533.531209,0.00038356,7]
[313996513,1707918723333,-282.265306,0.00038356,7]
[313996514,1707918723344,-1533.531209,0.00038356,7]
[313996515,1707918723354,-282.265306,0.00038356,7]
[313996516,1707918723364,-1533.531209,0.00038356,7]
[313996517,1707918723374,-282.265306,0.00038356,7]
[313996518,1707918723384,-1533.531209,0.00038356,7]
[313996519,1707918723394,-282.265306,0.00038356,7]
[313996520,1707918723404,-1533.531209,0.00038356,7]
[313996521,1707918723415,-282.265306,0.00038356,7]
[313996522,1707918723425,-1533.531209,0.00038356,7]
[313996523,1707918723436,-282.265306,0.00038356,7]
[313996524,1707918723446,-1533.531209,0.00038356,7]
[313996525,1707918723456,-282.265306,0.00038356,7]
[313996526,1707918723466,-1533.531209,0.00038356,7]
[313996527,1707918723477,-282.265306,0.00038356,7]
[313996528,1707918723488,-1533.531209,0.00038356,7]
[313996529,1707918723499,-282.265306,0.00038356,7]
[313996530,1707918723510,-1533.531209,0.00038356,7]
[313996531,1707918723520,-282.265306,0.00038356,7]
[313996532,1707918723530,-1533.531209,0.00038356,7]
[313996533,1707918723542,-282.265306,0.00038356,7]
[313996534,1707918723553,-1533.531209,0.00038356,7]
[313996535,1707918723564,-1533.531209,0.00038356,7]
[313996536,1707918723574,-282.265306,0.00038356,7]
[313996537,1707918723585,-1533.531209,0.00038356,7]
[313996538,1707918723595,-156.636542,0.00038356,7]
[313996539,1707918723606,-150.0,0.00038383,2]
[313996540,1707918723616,-150.0,0.00038388,2]
[313996541,1707918723627,-1000.0,0.000384,2]
[313996542,1707918723638,-500.0,0.00038405,7]
[313996543,1707918723649,-774.52,0.00038405,2]
[313996544,1707918723659,-498.09844158,0.00038405,7]
[313996545,1707918723670,-500.0,0.00038405,7]
[313996546,1707918723682,-500.0,0.00038405,7]
[313996547,1707918723692,-500.0,0.00038405,7]
[313996548,1707918723702,-511.19523551,0.00038405,7]
[313996549,1707918723713,-500.0,0.00038405,7]
[313996550,1707918723724,-500.0,0.00038405,7]
[313996551,1707918723734,-399.69859805,0.00038405,7]
[313996552,1707918723744,-500.0,0.00038405,7]
[313996553,1707918723754,-500.0,0.00038405,7]
[313996554,1707918723764,-500.0,0.00038405,7]
[313996555,1707918723774,-509.20518482,0.00038405,7]
[313996556,1707918723784,-839.71,0.00038405,7]
[313996557,1707918723795,-500.0,0.00038405,7]
[313996558,1707918723805,-500.0,0.00038405,7]
[313996559,1707918723815,-500.0,0.00038405,7]
[313996560,1707918723825,-500.0,0.00038405,7]
[313996561,1707918723836,-500.0,0.00038405,7]
[313996562,1707918723846,-500.0,0.00038405,7]
[313996563,1707918723856,-500.0,0.00038405,7]
[313996564,1707918723867,-500.0,0.00038405,7]
[313996565,1707918723877,-500.0,0.00038405,7]
[313996566,1707918723888,-533.31100361,0.00038405,7]
[313996567,1707918723898,-500.0,0.00038405,7]
[313996568,1707918723909,-509.23,0.00038405,7]
[313996569,1707918723928,-596.65,0.00038405,7]
[313996570,1707918723947,-500.0,0.00038405,7]
[313996571,1707918723960,-500.0,0.00038405,7]
[313996572,1707918723976,-500.0,0.00038405,7]
[313996573,1707918723994,-500.0,0.00038405,7]
[313996574,1707918724009,-500.0,0.00038405,7]
[313996575,1707918724023,-500.0,0.00038405,7]
[313996576,1707918724038,-646.68,0.00038405,7]
[313996577,1707918724055,-711.13,0.00038405,2]
[313996578,1707918724069,-504.34988527,0.00038405,7]
[313996579,1707918724085,-500.0,0.00038405,7]
[313996580,1707918724103,-500.0,0.00038405,7]
[313996581,1707918724118,-505.82664809,0.00038405,7]
[313996582,1707918724134,-500.0,0.00038405,7]
[313996583,1707918724153,-579.59,0.00038405,7]
[313996584,1707918724170,-500.0,0.00038405,7]
[313996585,1707918724181,-771.59,0.00038405,7]
[313996586,1707918724195,-500.0,0.00038405,7]
[313996587,1707918724210,-500.0,0.00038405,7]
[313996588,1707918724226,-500.0,0.00038405,7]
[313996589,1707918724237,-500.0,0.00038405,7]
[313996590,1707918724251,-500.0,0.00038405,7]
[313996591,1707918724265,-845.86,0.00038405,7]
[313996592,1707918724278,-773.25,0.00038405,7]
[313996593,1707918724291,-500.0,0.00038405,7]
[313996594,1707918724305,-500.0,0.00038405,7]
[313996595,1707918724319,-543.39,0.00038405,7]
[313996596,1707918724332,-500.0,0.00038405,7]
[313996597,1707918724347,-500.0,0.00038405,7]
[313996598,1707918724360,-150.0,0.00038413,2]
[313996599,1707918724373,-150.0,0.00038435,2]
[313996600,1707918724387,-44634.0,0.0003844,20]
[313996601,1707918724405,-295.31029084,0.0003844,20]
[313996602,1707918724419,-3020.0,0.0003844,20]
[313996603,1707918724432,-622.0,0.0003844,20]
[313996604,1707918724446,-304.0,0.0003844,20]
[313996605,1707918724461,-150.0,0.00038487,2]
[313996606,1707918724475,-150.0,0.0003853,2]
[313996607,1707918724489,-150.0,0.00038544,2]
[313996608,1707918724502,-150.0,0.00038554,2]
[313996609,1707918724516,-150.0,0.00038557,2]
[313996610,1707918724530,-150.0,0.00038577,2]
[313996611,1707918724544,-150.0,0.00038589,2]
[313996612,1707918724558,-150.0,0.0003859,2]
[313996613,1707918724571,-150.0,0.00038594,2]
[313996614,1707918724585,-150.0,0.000386,28]
[313996615,1707918724600,-200.0,0.00038629,22]
[313996616,1707918724614,-150.0,0.00038629,2]
[313996617,1707918724628,-500.0,0.0003863,7]
[313996618,1707918724644,-500.0,0.0003863,7]
[313996619,1707918724658,-500.0,0.0003863,7]
[313996620,1707918724671,-150.0,0.0003863,7]
[313996621,1707918724685,-500.0,0.0003863,7]
[313996622,1707918724698,-500.0,0.0003863,7]
[313996623,1707918724712,-361.52275,0.0003863,7]
[313996624,1707918724726,-500.0,0.0003863,7]
[313996625,1707918724739,-500.0,0.0003863,7]
[313996626,1707918724753,-500.0,0.0003863,7]
[313996627,1707918724766,-500.0,0.0003863,7]
[313996628,1707918724779,-562.5143127,0.0003863,7]
[313996629,1707918724793,-666.65,0.0003863,7]
[313996630,1707918724806,-500.0,0.0003863,7]
[313996631,1707918724819,-500.0,0.0003863,7]
[313996632,1707918724832,-500.0,0.0003863,7]
[313996633,1707918724847,-500.0,0.0003863,7]
[313996634,1707918724861,-500.0,0.0003863,7]
[313996635,1707918724874,-500.0,0.0003863,7]
[313996636,1707918724887,-500.0,0.0003863,7]
[313996637,1707918724900,-500.0,0.0003863,7]
[313996638,1707918724913,-500.0,0.0003863,7]
[313996639,1707918724925,-500.0,0.0003863,7]
[313996640,1707918724938,-610.71,0.0003863,7]
[313996641,1707918724951,-500.0,0.0003863,7]
[313996642,1707918724964,-500.0,0.0003863,7]
[313996643,1707918724978,-500.0,0.0003863,7]
[313996644,1707918724991,-470.97153771,0.0003863,7]
[313996645,1707918725004,-500.0,0.0003863,7]
[313996646,1707918725018,-500.0,0.0003863,7]
[313996647,1707918725031,-554.07,0.0003863,7]
[313996648,1707918725047,-542.31,0.0003863,7]
[313996649,1707918725062,-500.0,0.0003863,7]
[313996650,1707918725076,-680.98,0.0003863,7]
[313996651,1707918725090,-500.0,0.0003863,7]
[313996652,1707918725104,-500.0,0.0003863,7]
[313996653,1707918725117,-500.0,0.0003863,7]
[313996654,1707918725131,-564.97,0.0003863,7]
[313996655,1707918725146,-500.0,0.0003863,7]
[313996656,1707918725160,-500.0,0.0003863,7]
[313996657,1707918725174,-1037.12,0.0003863,7]
[313996658,1707918725188,-639.43,0.0003863,7]
[313996659,1707918725202,-500.0,0.0003863,7]
[313996660,1707918725216,-662.66,0.0003863,7]
[313996661,1707918725229,-593.09,0.0003863,7]
[313996662,1707918725243,-586.77,0.0003863,7]
[313996663,1707918725257,-500.0,0.0003863,7]
[313996664,1707918725271,-752.61,0.0003863,7]
[313996665,1707918725286,-781.56,0.0003863,7]
[313996666,1707918725303,-500.0,0.0003863,7]
[313996667,1707918725317,-381.13114275,0.0003863,7]
[313996668,1707918725331,-686.38,0.0003863,7]
[313996669,1707918725342,-538.8,0.0003863,7]
[313996670,1707918725352,-500.0,0.0003863,7]
[313996671,1707918725362,-500.0,0.0003863,7]
[313996672,1707918725373,-500.0,0.0003863,7]
[313996673,1707918725383,-500.0,0.0003863,7]
[313996674,1707918725392,-500.0,0.0003863,7]
[313996675,1707918725402,-500.0,0.0003863,7]
[313996676,1707918725412,-538.79,0.0003863,7]
[313996677,1707918725421,-1088.05,0.0003863,7]
[313996678,1707918725431,-500.0,0.0003863,7]
[313996679,1707918725440,-740.2,0.0003863,7]
[313996680,1707918725450,-1131.8,0.0003863,7]
[313996681,1707918725459,-644.37577295,0.0003863,7]
[313996682,1707918725469,-688.02,0.0003863,7]
[313996683,1707918725480,-500.0,0.0003863,7]
[313996684,1707918725491,-500.0,0.0003863,7]
[313996685,1707918725500,-1651.95,0.0003863,7]
[313996686,1707918725509,-525.42,0.0003863,7]
[313996687,1707918725519,-574.150352,0.0003863,7]
[313996688,1707918725529,-769.2,0.0003863,7]
[313996689,1707918725539,-500.0,0.0003863,7]
[313996690,1707918725550,-500.0,0.0003863,7]
[313996691,1707918725560,-474.11746173,0.0003863,7]
[313996692,1707918725570,-994.52,0.0003863,7]
[313996693,1707918725580,-1207.68,0.0003863,7]
[313996694,1707918725590,-644.98,0.0003863,7]
[313996695,1707918725600,-500.0,0.0003863,7]
[313996696,1707918725610,-1105.47,0.0003863,7]
[313996697,1707918725620,-500.0,0.0003863,7]
[313996698,1707918725629,-899.54,0.0003863,7]
[313996699,1707918725640,-500.0,0.0003863,7]
[313996700,1707918725650,-686.26,0.0003863,7]
[313996701,1707918725659,-859.98,0.0003863,7]
[313996702,1707918725669,-964.36,0.0003863,7]
[313996703,1707918725679,-500.0,0.0003863,7]
[313996704,1707918725689,-509.76,0.0003863,7]
[313996705,1707918725699,-1087.88,0.0003863,7]
[313996706,1707918725709,-885.89,0.0003863,7]
[313996707,1707918725719,-500.0,0.0003863,7]
[313996708,1707918725729,-1467.73,0.0003863,7]
[313996709,1707918725739,-799.09,0.0003863,7]
[313996710,1707918725748,-500.0,0.0003863,7]
[313996711,1707918725757,-542.62,0.0003863,7]
[313996712,1707918725767,-500.0,0.0003863,7]
[313996713,1707918725777,-873.25,0.0003863,7]
[313996714,1707918725786,-1208.48,0.0003863,7]
[313996715,1707918725798,-595.65,0.0003863,7]
[313996716,1707918725808,-1125.43,0.0003863,7]
[313996717,1707918725819,-640.41,0.0003863,7]
[313996718,1707918725829,-500.0,0.0003863,7]
[313996719,1707918725838,-1575.86,0.0003863,7]
[313996720,1707918725848,-609.63,0.0003863,7]
[313996721,1707918725858,-738.2,0.0003863,7]
[313996722,1707918725868,-553.78,0.0003863,7]
[313996723,1707918725877,-585.93,0.0003863,7]
[313996724,1707918725887,-863.16,0.0003863,7]
[313996725,1707918725896,-1318.95,0.0003863,7]
[313996726,1707918725907,-632.49,0.0003863,7]
[313996727,1707918725916,-878.83,0.0003863,7]
[313996728,1707918725926,-500.0,0.0003863,7]
[313996729,1707918725935,-837.17,0.0003863,7]
[313996730,1707918725945,-659.26,0.0003863,7]
[313996731,1707918725954,-1230.61,0.0003863,7]
[313996732,1707918725964,-500.0,0.0003863,7]
[313996733,1707918725974,-500.0,0.0003863,7]
[313996734,1707918725984,-438.51879232,0.0003863,7]
[313996735,1707918725994,-1303.9,0.0003863,7]
[313996736,1707918726004,-500.0,0.0003863,7]
[313996737,1707918726015,-1302.02,0.0003863,7]
[313996738,1707918726025,-695.14,0.0003863,7]
[313996739,1707918726034,-997.21,0.0003863,7]
[313996740,1707918726045,-500.0,0.0003863,7]
[313996741,1707918726054,-1326.61,0.0003863,7]
[313996742,1707918726064,-500.0,0.0003863,7]
[313996743,1707918726075,-500.0,0.0003863,7]
[313996744,1707918726084,-500.0,0.0003863,7]
[313996745,1707918726093,-1210.25,0.0003863,7]
[313996746,1707918726103,-1036.2,0.0003863,7]
[313996747,1707918726112,-500.0,0.0003863,7]
[313996748,1707918726122,-500.0,0.0003863,7]
[313996749,1707918726132,-500.0,0.0003863,7]
[313996750,1707918726142,-500.0,0.0003863,7]
[313996751,1707918726152,-1554.02,0.0003863,7]
[313996752,1707918726162,-794.8,0.0003863,7]
[313996753,1707918726173,-500.0,0.0003863,7]
[313996754,1707918726184,-825.62,0.0003863,7]
[313996755,1707918726195,-639.39,0.0003863,7]
[313996756,1707918726205,-1028.27,0.0003863,7]
[313996757,1707918726216,-500.0,0.0003863,7]
[313996758,1707918726226,-500.0,0.0003863,7]
[313996759,1707918726236,-500.0,0.0003863,7]
[313996760,1707918726247,-500.0,0.0003863,7]
[313996761,1707918726820,-1356.73,0.0003863,7]
[313996762,1707918726848,-1099.78,0.0003863,7]
[313996763,1707918726865,-1213.75,0.0003863,7]
[313996764,1707918726881,-995.39,0.0003863,2]
[313996765,1707918726893,-500.0,0.0003863,7]
[313996766,1707918726903,-646.45,0.0003863,7]
[313996767,1707918726913,-1321.75,0.0003863,7]
[313996768,1707918726923,-500.0,0.0003863,7]
[313996769,1707918726932,-1084.13,0.0003863,7]
[313996770,1707918726941,-1094.34,0.0003863,7]
[313996771,1707918726951,-500.0,0.0003863,7]
[313996772,1707918726960,-529.24,0.0003863,7]
[313996773,1707918726970,-250.0,0.0003863,7]
[313996774,1707918726979,-500.0,0.0003863,7]
[313996775,1707918726987,-500.0,0.0003863,7]
[313996776,1707918726997,-1288.85,0.0003863,7]
[313996777,1707918727006,-500.0,0.0003863,7]
[313996778,1707918727016,-500.0,0.0003863,7]
[313996779,1707918727025,-613.15,0.0003863,7]
[313996780,1707918727034,-740.98,0.0003863,7]
[313996781,1707918727045,-500.0,0.0003863,7]
[313996782,1707918727055,-500.0,0.0003863,7]
[313996783,1707918727065,-918.21,0.0003863,2]
[313996784,1707918727075,-790.84,0.0003863,7]
[313996785,1707918727084,-1413.05,0.0003863,7]
[313996786,1707918727093,-1413.61,0.0003863,7]
[313996787,1707918727102,-754.17,0.0003863,7]
[313996788,1707918727111,-768.11,0.0003863,7]
[313996789,1707918727122,-500.0,0.0003863,7]
[313996790,1707918727133,-500.0,0.0003863,7]
[313996791,1707918727142,-1147.8,0.0003863,7]
[313996792,1707918727152,-500.0,0.0003863,7]
[313996793,1707918727162,-884.99,0.0003863,7]
[313996794,1707918727171,-1363.27,0.0003863,7]
[313996795,1707918727180,-944.25,0.0003863,7]
[313996796,1707918727190,-500.0,0.0003863,7]
[313996797,1707918727199,-516.45,0.0003863,7]
[313996798,1707918727208,-1338.49,0.0003863,7]
[313996799,1707918727218,-500.0,0.0003863,7]
[313996800,1707918727228,-721.42,0.0003863,7]
[313996801,1707918727237,-1332.5,0.0003863,7]
[313996802,1707918727247,-617.74,0.0003863,7]
[313996803,1707918727256,-500.0,0.0003863,7]
[313996804,1707918727266,-1122.42,0.0003863,7]
[313996805,1707918727277,-500.0,0.0003863,7]
[313996806,1707918727286,-500.0,0.0003863,7]
[313996807,1707918727296,-812.15,0.0003863,7]
[313996808,1707918727305,-1122.49,0.0003863,7]
[313996809,1707918727315,-2014.14,0.0003863,7]
[313996810,1707918727325,-500.0,0.0003863,7]
[313996811,1707918727334,-636.6,0.0003863,7]
[313996812,1707918727343,-993.94,0.0003863,7]
[313996813,1707918727353,-500.0,0.0003863,7]
[313996814,1707918727363,-667.57,0.0003863,7]
[313996815,1707918727373,-504.7,0.0003863,7]
[313996816,1707918727383,-500.0,0.0003863,7]
[313996817,1707918727392,-500.0,0.0003863,7]
[313996818,1707918727401,-1764.29,0.0003863,7]
[313996819,1707918727410,-31.46305548,0.0003863,7]
[313996820,1707918727874,-747.30694452,0.0003863,7]
[313996821,1707918727884,-901.06730857,0.0003863,7]
[313996822,1707918727896,-948.05809748,0.0003863,7]
[313996823,1707918727908,-342.03459395,0.0003863,7]
[313996824,1707918727918,-591.81,0.0003863,7]
[313996825,1707918727927,-526.04402835,0.0003863,7]
[313996826,1707918727937,-500.0,0.0003863,7]
[313996827,1707918727946,-1816.87,0.0003863,7]
[313996828,1707918727956,-796.54,0.0003863,7]
[313996829,1707918727965,-452.90699855,0.0003863,7]
[313996830,1707918727977,-56.66300145,0.0003863,7]
[313996831,1707918727986,-510.03,0.0003863,7]
[313996832,1707918727996,-711.35,0.0003863,7]
[313996833,1707918728005,-251.80452155,0.0003863,7]
[313996834,1707918728017,-248.19547845,0.0003863,7]
[313996835,1707918728027,-757.25,0.0003863,7]
[313996836,1707918728036,-1499.13,0.0003863,7]
[313996837,1707918728047,-500.0,0.0003863,7]
[313996838,1707918728056,-500.0,0.0003863,7]
[313996839,1707918728065,-566.41,0.0003863,7]
[313996840,1707918728075,-253.5926006,0.0003863,7]
[313996841,1707918728091,-500.0,0.00038082,2]
[313996842,1707918728100,-452.4173994,0.0003863,7]
[313996843,1707918728110,-1377.12,0.0003863,7]
[313996844,1707918728119,-500.0,0.0003863,7]
[313996845,1707918728128,-1227.9,0.0003863,7]
[313996846,1707918728137,-996.41,0.0003863,7]
[313996847,1707918728146,-181.01510728,0.0003863,7]
[313996848,1707918728159,-463.17489272,0.0003863,7]
[313996849,1707918728169,-2029.29,0.0003863,7]
[313996850,1707918728178,-1069.18,0.0003863,7]
[313996851,1707918728188,-514.5,0.0003863,7]
[313996852,1707918728198,-1406.43,0.0003863,7]
[313996853,1707918728209,-482.26720528,0.0003863,7]